[Event "Titled Tuesday Blitz February 07 Late 2023"]
[White "CheckBits"]
[Black "Smith, Garrett L"]
[BlackFideId "2024829"]
[WhiteElo "2403"]
[BlackElo "2047"]
[Result "0-1"]
[Round "04"]
[TimeControl "180+2"]
[Date "2023.02.07"]
[WhiteClock "0:00:12"]
[BlackClock "0:00:36"]

1. e4 {[%clk 0:03:00]}  c5 {[%clk 0:03:00]} 2. c3 {[%clk 0:02:58]}  d5 {[%clk 0:02:59]} 3. exd5 {[%clk 0:02:58]}  Qxd5 {[%clk 0:03:00]} 4. Nf3 {[%clk 0:02:57]}  Nc6 {[%clk 0:03:00]} 5. Na3 {[%clk 0:02:57]}  Bf5 {[%clk 0:02:59]} 6. Bc4 {[%clk 0:02:57]}  Qd7 {[%clk 0:02:48]} 7. O-O {[%clk 0:02:52]}  e6 {[%clk 0:02:46]} 8. Qe2 {[%clk 0:02:42]}  Nf6 {[%clk 0:02:45]} 9. Rd1 {[%clk 0:02:41]}  Bg4 {[%clk 0:02:30]} 10. Nc2 {[%clk 0:02:37]}  Be7 {[%clk 0:02:26]} 11. d4 {[%clk 0:02:33]}  O-O {[%clk 0:01:50]} 12. dxc5 {[%clk 0:02:26]}  Qc7 {[%clk 0:01:51]} 13. h3 {[%clk 0:02:03]}  Bxf3 {[%clk 0:01:48]} 14. Qxf3 {[%clk 0:02:04]}  Ne5 {[%clk 0:01:48]} 15. Qg3 {[%clk 0:01:59]}  Nh5 {[%clk 0:01:42]} 16. Qh2 {[%clk 0:01:46]}  Qxc5 {[%clk 0:01:42]} 17. Be2 {[%clk 0:01:43]}  Bd6 {[%clk 0:01:24]} 18. Be3 {[%clk 0:01:18]}  Nf3+ {[%clk 0:01:19]} 19. Bxf3 {[%clk 0:01:15]}  Bxh2+ {[%clk 0:01:19]} 20. Kxh2 {[%clk 0:01:11]}  Qe5+ {[%clk 0:01:18]} 21. g3 {[%clk 0:01:09]}  Nf6 {[%clk 0:01:18]} 22. Bd4 {[%clk 0:00:59]}  Qf5 {[%clk 0:01:18]} 23. Ne1 {[%clk 0:00:57]}  Rfd8 {[%clk 0:01:16]} 24. Kg2 {[%clk 0:00:53]}  a5 {[%clk 0:01:11]} 25. Nd3 {[%clk 0:00:46]}  Qb5 {[%clk 0:00:53]} 26. a4 {[%clk 0:00:43]}  Qc4 {[%clk 0:00:47]} 27. Bxb7 {[%clk 0:00:34]}  Rab8 {[%clk 0:00:44]} 28. Bf3 {[%clk 0:00:34]}  Nd5 {[%clk 0:00:36]} 29. Rd2 {[%clk 0:00:23]}  f6 {[%clk 0:00:36]} 30. Re1 {[%clk 0:00:12]}  Kf7 {[%clk 0:00:36]} 0-1


[Site "https://www.chess.com"]

[Event "Titled Tuesday Blitz February 07 Late 2023"]
[White "Herman, Daniel"]
[Black "lisjakzlatko1"]
[WhiteFideId "30935008"]
[WhiteElo "1956"]
[BlackElo "2213"]
[Result "1-0"]
[Round "04"]
[TimeControl "180+2"]
[Date "2023.02.07"]
[WhiteClock "0:00:22"]
[BlackClock "0:00:04"]

1. d4 {[%clk 0:03:00]}  d5 {[%clk 0:02:59]} 2. c4 {[%clk 0:03:01]}  Nc6 {[%clk 0:02:58]} 3. Nc3 {[%clk 0:02:58]}  dxc4 {[%clk 0:02:57]} 4. d5 {[%clk 0:02:57]}  Na5 {[%clk 0:02:57]} 5. e4 {[%clk 0:02:53]}  c6 {[%clk 0:02:54]} 6. Nf3 {[%clk 0:02:45]}  e6 {[%clk 0:02:46]} 7. Be3 {[%clk 0:02:37]}  Nf6 {[%clk 0:02:37]} 8. dxc6 {[%clk 0:02:32]}  Qxd1+ {[%clk 0:02:27]} 9. Rxd1 {[%clk 0:02:33]}  bxc6 {[%clk 0:02:26]} 10. Ne5 {[%clk 0:02:26]}  Bb4 {[%clk 0:02:23]} 11. f3 {[%clk 0:02:20]}  O-O {[%clk 0:02:15]} 12. Nxc4 {[%clk 0:02:18]}  Nxc4 {[%clk 0:02:01]} 13. Bxc4 {[%clk 0:02:19]}  Nd7 {[%clk 0:01:45]} 14. f4 {[%clk 0:02:04]}  Nc5 {[%clk 0:01:37]} 15. Bxc5 {[%clk 0:01:57]}  Bxc5 {[%clk 0:01:35]} 16. Ke2 {[%clk 0:01:57]}  a5 {[%clk 0:01:28]} 17. e5 {[%clk 0:01:50]}  a4 {[%clk 0:01:25]} 18. Ne4 {[%clk 0:01:47]}  Be7 {[%clk 0:01:21]} 19. Nd6 {[%clk 0:01:40]}  Ba6 {[%clk 0:01:17]} 20. Bxa6 {[%clk 0:01:31]}  Rxa6 {[%clk 0:01:16]} 21. Nc4 {[%clk 0:01:29]}  f6 {[%clk 0:01:11]} 22. Rd7 {[%clk 0:01:28]}  Bc5 {[%clk 0:01:07]} 23. g3 {[%clk 0:01:22]}  a3 {[%clk 0:01:00]} 24. b3 {[%clk 0:01:20]}  g5 {[%clk 0:00:55]} 25. Rc1 {[%clk 0:01:11]}  Bb4 {[%clk 0:00:39]} 26. exf6 {[%clk 0:00:55]}  Rxf6 {[%clk 0:00:29]} 27. fxg5 {[%clk 0:00:42]}  Rf5 {[%clk 0:00:28]} 28. h4 {[%clk 0:00:43]}  e5 {[%clk 0:00:24]} 29. Rf1 {[%clk 0:00:39]}  Rxf1 {[%clk 0:00:20]} 30. Kxf1 {[%clk 0:00:39]}  Ra8 {[%clk 0:00:14]} 31. Nxe5 {[%clk 0:00:36]}  Re8 {[%clk 0:00:14]} 32. Ng4 {[%clk 0:00:34]}  Re1+ {[%clk 0:00:14]} 33. Kg2 {[%clk 0:00:32]}  Ra1 {[%clk 0:00:15]} 34. Nf6+ {[%clk 0:00:31]}  Kf8 {[%clk 0:00:14]} 35. Nxh7+ {[%clk 0:00:32]}  Ke8 {[%clk 0:00:14]} 36. Nf6+ {[%clk 0:00:32]}  Kf8 {[%clk 0:00:14]} 37. g6 {[%clk 0:00:32]}  Rxa2+ {[%clk 0:00:13]} 38. Kf3 {[%clk 0:00:31]}  Be7 {[%clk 0:00:07]} 39. Nh7+ {[%clk 0:00:23]}  Ke8 {[%clk 0:00:04]} 40. Ra7 {[%clk 0:00:22]} 1-0


[Site "https://www.chess.com"]

[Event "Titled Tuesday Blitz February 07 Late 2023"]
[White "Sabar, Ethmane Daouda"]
[Black "Silva, Pedro Gil Ferreira Da"]
[WhiteFideId "19600097"]
[BlackFideId "1946102"]
[WhiteElo "2040"]
[BlackElo "2227"]
[Result "1-0"]
[Round "04"]
[TimeControl "180+2"]
[Date "2023.02.07"]
[WhiteClock "0:00:08"]
[BlackClock "0:00:25"]

1. e4 {[%clk 0:03:00]}  c6 {[%clk 0:02:59]} 2. d3 {[%clk 0:02:57]}  d5 {[%clk 0:03:00]} 3. Nd2 {[%clk 0:02:57]}  g6 {[%clk 0:02:58]} 4. Ngf3 {[%clk 0:02:57]}  Bg7 {[%clk 0:02:58]} 5. g3 {[%clk 0:02:57]}  Nf6 {[%clk 0:02:58]} 6. Bg2 {[%clk 0:02:57]}  O-O {[%clk 0:02:56]} 7. O-O {[%clk 0:02:58]}  Nbd7 {[%clk 0:02:53]} 8. Re1 {[%clk 0:02:56]}  e5 {[%clk 0:02:47]} 9. exd5 {[%clk 0:02:49]}  Nxd5 {[%clk 0:02:48]} 10. Nf1 {[%clk 0:02:23]}  Re8 {[%clk 0:02:44]} 11. h3 {[%clk 0:02:21]}  Nc5 {[%clk 0:02:38]} 12. Ng5 {[%clk 0:02:02]}  h6 {[%clk 0:02:30]} 13. Ne4 {[%clk 0:02:02]}  Nxe4 {[%clk 0:02:29]} 14. Bxe4 {[%clk 0:01:59]}  Be6 {[%clk 0:02:27]} 15. Ne3 {[%clk 0:01:57]}  Bxh3 {[%clk 0:02:22]} 16. Qf3 {[%clk 0:01:35]}  Be6 {[%clk 0:02:18]} 17. Qg2 {[%clk 0:01:22]}  Nxe3 {[%clk 0:02:10]} 18. Bxe3 {[%clk 0:01:22]}  Bd5 {[%clk 0:02:10]} 19. Re2 {[%clk 0:01:13]}  f5 {[%clk 0:02:09]} 20. Bf3 {[%clk 0:01:01]}  Bxf3 {[%clk 0:01:44]} 21. Qxf3 {[%clk 0:00:59]}  Qd5 {[%clk 0:01:45]} 22. Kg2 {[%clk 0:00:57]}  Kf7 {[%clk 0:01:30]} 23. Rh1 {[%clk 0:00:47]}  Qxf3+ {[%clk 0:01:24]} 24. Kxf3 {[%clk 0:00:47]}  g5 {[%clk 0:01:25]} 25. Bd2 {[%clk 0:00:43]}  Rad8 {[%clk 0:01:15]} 26. Bc3 {[%clk 0:00:43]}  g4+ {[%clk 0:00:52]} 27. Kg2 {[%clk 0:00:41]}  f4 {[%clk 0:00:43]} 28. gxf4 {[%clk 0:00:38]}  exf4 {[%clk 0:00:44]} 29. Rxe8 {[%clk 0:00:36]}  Rxe8 {[%clk 0:00:39]} 30. Bxg7 {[%clk 0:00:31]}  Kxg7 {[%clk 0:00:39]} 31. Rh4 {[%clk 0:00:31]}  h5 {[%clk 0:00:39]} 32. Rxh5 {[%clk 0:00:31]}  Kg6 {[%clk 0:00:39]} 33. Rh4 {[%clk 0:00:29]}  Kg5 {[%clk 0:00:39]} 34. Rh7 {[%clk 0:00:28]}  Re1 {[%clk 0:00:39]} 35. Rxb7 {[%clk 0:00:26]}  f3+ {[%clk 0:00:39]} 36. Kh2 {[%clk 0:00:23]}  Re2 {[%clk 0:00:32]} 37. Kg3 {[%clk 0:00:19]}  Rxc2 {[%clk 0:00:31]} 38. Rxa7 {[%clk 0:00:19]}  Rxb2 {[%clk 0:00:30]} 39. Rg7+ {[%clk 0:00:19]}  Kf5 {[%clk 0:00:31]} 40. Rxg4 {[%clk 0:00:17]}  Rxa2 {[%clk 0:00:32]} 41. Rf4+ {[%clk 0:00:17]}  Ke5 {[%clk 0:00:32]} 42. Kxf3 {[%clk 0:00:18]}  Ra3 {[%clk 0:00:32]} 43. Ke3 {[%clk 0:00:18]}  Ra1 {[%clk 0:00:29]} 44. Rc4 {[%clk 0:00:17]}  Kd5 {[%clk 0:00:28]} 45. f4 {[%clk 0:00:16]}  Re1+ {[%clk 0:00:27]} 46. Kf3 {[%clk 0:00:16]}  Rf1+ {[%clk 0:00:27]} 47. Kg4 {[%clk 0:00:17]}  Rd1 {[%clk 0:00:27]} 48. Rc3 {[%clk 0:00:15]}  Kd4 {[%clk 0:00:26]} 49. Rxc6 {[%clk 0:00:14]}  Rg1+ {[%clk 0:00:25]} 50. Kf5 {[%clk 0:00:13]}  Kxd3 {[%clk 0:00:26]} 51. Re6 {[%clk 0:00:13]}  Kd4 {[%clk 0:00:26]} 52. Kf6 {[%clk 0:00:13]}  Kd5 {[%clk 0:00:27]} 53. f5 {[%clk 0:00:13]}  Rh1 {[%clk 0:00:26]} 54. Re2 {[%clk 0:00:13]}  Kd6 {[%clk 0:00:25]} 55. Kf7 {[%clk 0:00:13]}  Rg1 {[%clk 0:00:26]} 56. f6 {[%clk 0:00:13]}  Kd7 {[%clk 0:00:26]} 57. Rd2+ {[%clk 0:00:12]}  Kc7 {[%clk 0:00:27]} 58. Kf8 {[%clk 0:00:11]}  Rf1 {[%clk 0:00:24]} 59. f7 {[%clk 0:00:11]}  Rg1 {[%clk 0:00:25]} 60. Rd4 {[%clk 0:00:10]}  Kc8 {[%clk 0:00:24]} 61. Ke7 {[%clk 0:00:10]}  Re1+ {[%clk 0:00:24]} 62. Kf6 {[%clk 0:00:10]}  Rf1+ {[%clk 0:00:25]} 63. Ke6 {[%clk 0:00:10]}  Re1+ {[%clk 0:00:25]} 64. Kf5 {[%clk 0:00:10]}  Kb7 {[%clk 0:00:24]} 65. f8=Q {[%clk 0:00:09]}  Kc6 {[%clk 0:00:25]} 66. Qd6+ {[%clk 0:00:08]}  Kb5 {[%clk 0:00:25]} 67. Rb4+ {[%clk 0:00:08]}  Ka5 {[%clk 0:00:25]} 68. Qb6# {[%clk 0:00:08]} 1-0


[Site "https://www.chess.com"]

[Event "Titled Tuesday Blitz February 07 Late 2023"]
[White "Grot, Blazej"]
[Black "Levine, David"]
[WhiteFideId "21835845"]
[BlackFideId "2011611"]
[WhiteElo "1990"]
[BlackElo "2040"]
[Result "1-0"]
[Round "04"]
[TimeControl "180+2"]
[Date "2023.02.07"]
[WhiteClock "0:00:03"]
[BlackClock "0:00:21"]

1. e4 {[%clk 0:03:00]}  e5 {[%clk 0:02:52]} 2. Nf3 {[%clk 0:03:00]}  Nc6 {[%clk 0:02:52]} 3. Bc4 {[%clk 0:03:00]}  Nf6 {[%clk 0:02:52]} 4. d3 {[%clk 0:03:00]}  h6 {[%clk 0:02:51]} 5. c3 {[%clk 0:02:59]}  d6 {[%clk 0:02:51]} 6. Bb3 {[%clk 0:02:59]}  g5 {[%clk 0:02:48]} 7. Nbd2 {[%clk 0:02:59]}  Bg7 {[%clk 0:02:48]} 8. Nf1 {[%clk 0:02:59]}  O-O {[%clk 0:02:42]} 9. Ng3 {[%clk 0:02:58]}  d5 {[%clk 0:02:41]} 10. Qe2 {[%clk 0:02:57]}  a5 {[%clk 0:02:35]} 11. Nf5 {[%clk 0:02:48]}  Bxf5 {[%clk 0:02:26]} 12. exf5 {[%clk 0:02:49]}  a4 {[%clk 0:02:25]} 13. Bc2 {[%clk 0:02:48]}  e4 {[%clk 0:02:22]} 14. dxe4 {[%clk 0:02:14]}  Nxe4 {[%clk 0:02:22]} 15. O-O {[%clk 0:02:11]}  Re8 {[%clk 0:02:21]} 16. Qd3 {[%clk 0:02:07]}  Ne5 {[%clk 0:02:19]} 17. Nxe5 {[%clk 0:02:06]}  Bxe5 {[%clk 0:02:12]} 18. f6 {[%clk 0:01:47]}  Qxf6 {[%clk 0:01:51]} 19. Qxd5 {[%clk 0:01:17]}  c6 {[%clk 0:01:41]} 20. Qc4 {[%clk 0:01:06]}  b5 {[%clk 0:01:33]} 21. Qe2 {[%clk 0:01:02]}  Nxc3 {[%clk 0:01:19]} 22. Qd3 {[%clk 0:00:44]}  Ne2+ {[%clk 0:01:18]} 23. Kh1 {[%clk 0:00:40]}  Nxc1 {[%clk 0:01:17]} 24. Raxc1 {[%clk 0:00:39]}  Rad8 {[%clk 0:01:03]} 25. Qh7+ {[%clk 0:00:39]}  Kf8 {[%clk 0:01:03]} 26. Be4 {[%clk 0:00:37]}  Rd6 {[%clk 0:00:55]} 27. g3 {[%clk 0:00:32]}  Qg7 {[%clk 0:00:51]} 28. Qf5 {[%clk 0:00:30]}  Qf6 {[%clk 0:00:50]} 29. Qh3 {[%clk 0:00:17]}  Kg7 {[%clk 0:00:48]} 30. b3 {[%clk 0:00:13]}  axb3 {[%clk 0:00:44]} 31. axb3 {[%clk 0:00:14]}  Ra8 {[%clk 0:00:39]} 32. Qg2 {[%clk 0:00:14]}  Ra2 {[%clk 0:00:36]} 33. Bxc6 {[%clk 0:00:13]}  Rdd2 {[%clk 0:00:33]} 34. Rce1 {[%clk 0:00:05]}  Bd4 {[%clk 0:00:32]} 35. Bxb5 {[%clk 0:00:03]}  Rxf2 {[%clk 0:00:30]} 36. Rxf2 {[%clk 0:00:04]}  Rxf2 {[%clk 0:00:30]} 37. Qe4 {[%clk 0:00:04]}  Rf1+ {[%clk 0:00:30]} 38. Rxf1 {[%clk 0:00:04]}  Qxf1+ {[%clk 0:00:21]} 39. Bxf1 {[%clk 0:00:03]} 1-0


[Site "https://www.chess.com"]

[Event "Titled Tuesday Blitz February 07 Late 2023"]
[White "Balog, Imre"]
[Black "Figorito, Nick"]
[WhiteFideId "728446"]
[BlackFideId "30923689"]
[WhiteElo "2615"]
[BlackElo "2036"]
[Result "0-1"]
[Round "04"]
[TimeControl "180+2"]
[Date "2023.02.07"]
[WhiteClock "0:00:03"]
[BlackClock "0:00:50"]

1. e4 {[%clk 0:03:00]}  e6 {[%clk 0:02:59]} 2. d4 {[%clk 0:02:55]}  d5 {[%clk 0:03:00]} 3. Nd2 {[%clk 0:02:54]}  Nf6 {[%clk 0:03:00]} 4. e5 {[%clk 0:02:54]}  Nfd7 {[%clk 0:03:01]} 5. Bd3 {[%clk 0:02:54]}  c5 {[%clk 0:03:01]} 6. c3 {[%clk 0:02:54]}  Nc6 {[%clk 0:03:02]} 7. Ne2 {[%clk 0:02:54]}  cxd4 {[%clk 0:03:02]} 8. cxd4 {[%clk 0:02:54]}  f6 {[%clk 0:03:03]} 9. Nf4 {[%clk 0:02:37]}  Nxd4 {[%clk 0:03:02]} 10. Qh5+ {[%clk 0:02:19]}  Ke7 {[%clk 0:03:02]} 11. exf6+ {[%clk 0:02:08]}  Nxf6 {[%clk 0:03:00]} 12. Qe5 {[%clk 0:02:06]}  Nc6 {[%clk 0:02:51]} 13. Qg5 {[%clk 0:01:55]}  Kf7 {[%clk 0:02:32]} 14. b3 {[%clk 0:01:47]}  Bd6 {[%clk 0:02:23]} 15. Nh5 {[%clk 0:01:28]}  Nxh5 {[%clk 0:02:03]} 16. Qxh5+ {[%clk 0:01:27]}  g6 {[%clk 0:02:03]} 17. Qf3+ {[%clk 0:01:09]}  Qf6 {[%clk 0:02:02]} 18. Qxf6+ {[%clk 0:01:06]}  Kxf6 {[%clk 0:02:03]} 19. Bb2+ {[%clk 0:01:05]}  Be5 {[%clk 0:01:59]} 20. Bxe5+ {[%clk 0:01:05]}  Nxe5 {[%clk 0:02:00]} 21. Be2 {[%clk 0:00:58]}  Bd7 {[%clk 0:01:52]} 22. Nf3 {[%clk 0:00:57]}  Nxf3+ {[%clk 0:01:52]} 23. Bxf3 {[%clk 0:00:57]}  Rac8 {[%clk 0:01:51]} 24. Kd2 {[%clk 0:00:57]}  Rc7 {[%clk 0:01:46]} 25. Rac1 {[%clk 0:00:57]}  Rhc8 {[%clk 0:01:47]} 26. Rxc7 {[%clk 0:00:57]}  Rxc7 {[%clk 0:01:48]} 27. Rc1 {[%clk 0:00:56]}  Rxc1 {[%clk 0:01:48]} 28. Kxc1 {[%clk 0:00:57]}  Ke5 {[%clk 0:01:46]} 29. Kd2 {[%clk 0:00:54]}  Kd4 {[%clk 0:01:46]} 30. h4 {[%clk 0:00:48]}  e5 {[%clk 0:01:45]} 31. h5 {[%clk 0:00:43]}  gxh5 {[%clk 0:01:24]} 32. Bxh5 {[%clk 0:00:43]}  h6 {[%clk 0:01:25]} 33. Bf3 {[%clk 0:00:33]}  e4 {[%clk 0:01:25]} 34. Bh5 {[%clk 0:00:32]}  a5 {[%clk 0:01:18]} 35. Be2 {[%clk 0:00:20]}  b5 {[%clk 0:01:14]} 36. a3 {[%clk 0:00:19]}  b4 {[%clk 0:01:14]} 37. a4 {[%clk 0:00:16]}  Ke5 {[%clk 0:01:09]} 38. g3 {[%clk 0:00:13]}  d4 {[%clk 0:01:08]} 39. Bc4 {[%clk 0:00:12]}  Be6 {[%clk 0:01:02]} 40. Bxe6 {[%clk 0:00:07]}  Kxe6 {[%clk 0:01:03]} 41. Ke2 {[%clk 0:00:06]}  Kf5 {[%clk 0:00:59]} 42. f3 {[%clk 0:00:03]}  h5 {[%clk 0:00:50]} 0-1


[Site "https://www.chess.com"]

[Event "Titled Tuesday Blitz February 07 Late 2023"]
[White "Melikhov, Evgeny V."]
[Black "Butolo, Alexandru-Mircea"]
[WhiteFideId "4122046"]
[BlackFideId "1261649"]
[WhiteElo "2269"]
[BlackElo "2033"]
[Result "1-0"]
[Round "04"]
[TimeControl "180+2"]
[Date "2023.02.07"]
[WhiteClock "0:00:04"]
[BlackClock "0:00:05"]

1. d4 {[%clk 0:02:59]}  Nf6 {[%clk 0:02:59]} 2. c4 {[%clk 0:02:59]}  e6 {[%clk 0:02:59]} 3. Nc3 {[%clk 0:02:59]}  Bb4 {[%clk 0:02:57]} 4. Qc2 {[%clk 0:02:59]}  d5 {[%clk 0:02:55]} 5. cxd5 {[%clk 0:02:59]}  exd5 {[%clk 0:02:55]} 6. Bg5 {[%clk 0:02:58]}  c5 {[%clk 0:02:56]} 7. e3 {[%clk 0:02:50]}  h6 {[%clk 0:02:52]} 8. Bxf6 {[%clk 0:02:49]}  Qxf6 {[%clk 0:02:52]} 9. a3 {[%clk 0:02:47]}  Bf5 {[%clk 0:02:43]} 10. Qa4+ {[%clk 0:02:27]}  Bd7 {[%clk 0:02:42]} 11. Bb5 {[%clk 0:02:21]}  cxd4 {[%clk 0:02:35]} 12. Bxd7+ {[%clk 0:02:11]}  Nxd7 {[%clk 0:02:34]} 13. Qxb4 {[%clk 0:01:43]}  dxc3 {[%clk 0:02:33]} 14. bxc3 {[%clk 0:01:42]}  Rc8 {[%clk 0:02:21]} 15. Ne2 {[%clk 0:01:33]}  Qa6 {[%clk 0:02:20]} 16. Ra2 {[%clk 0:01:21]}  Nc5 {[%clk 0:02:12]} 17. O-O {[%clk 0:01:16]}  O-O {[%clk 0:02:12]} 18. Nd4 {[%clk 0:01:07]}  Ne4 {[%clk 0:02:09]} 19. Rb2 {[%clk 0:00:49]}  b6 {[%clk 0:02:03]} 20. Rc1 {[%clk 0:00:24]}  Qd3 {[%clk 0:01:57]} 21. Nf3 {[%clk 0:00:12]}  Rxc3 {[%clk 0:01:49]} 22. Rf1 {[%clk 0:00:05]}  Rfc8 {[%clk 0:01:22]} 23. Qd4 {[%clk 0:00:04]}  Qxd4 {[%clk 0:01:18]} 24. Nxd4 {[%clk 0:00:04]}  Rxa3 {[%clk 0:01:18]} 25. h3 {[%clk 0:00:03]}  Rac3 {[%clk 0:01:07]} 26. Ra1 {[%clk 0:00:02]}  Rc1+ {[%clk 0:01:02]} 27. Rxc1 {[%clk 0:00:02]}  Rxc1+ {[%clk 0:01:03]} 28. Kh2 {[%clk 0:00:03]}  Nxf2 {[%clk 0:01:01]} 29. Rxf2 {[%clk 0:00:02]}  a5 {[%clk 0:00:59]} 30. Rf5 {[%clk 0:00:02]}  a4 {[%clk 0:00:53]} 31. Rxd5 {[%clk 0:00:02]}  a3 {[%clk 0:00:53]} 32. Rd8+ {[%clk 0:00:02]}  Kh7 {[%clk 0:00:53]} 33. Ra8 {[%clk 0:00:03]}  Rc3 {[%clk 0:00:51]} 34. Nb5 {[%clk 0:00:03]}  Rxe3 {[%clk 0:00:49]} 35. Rxa3 {[%clk 0:00:03]}  Re5 {[%clk 0:00:42]} 36. Rb3 {[%clk 0:00:03]}  f5 {[%clk 0:00:39]} 37. Nd4 {[%clk 0:00:03]}  Rd5 {[%clk 0:00:35]} 38. Nf3 {[%clk 0:00:02]}  b5 {[%clk 0:00:34]} 39. Kg3 {[%clk 0:00:03]}  g5 {[%clk 0:00:32]} 40. Kf2 {[%clk 0:00:03]}  g4 {[%clk 0:00:27]} 41. hxg4 {[%clk 0:00:03]}  fxg4 {[%clk 0:00:28]} 42. Ne1 {[%clk 0:00:02]}  h5 {[%clk 0:00:23]} 43. g3 {[%clk 0:00:02]}  Kg6 {[%clk 0:00:18]} 44. Nd3 {[%clk 0:00:03]}  Kf5 {[%clk 0:00:17]} 45. Nf4 {[%clk 0:00:03]}  Rd2+ {[%clk 0:00:16]} 46. Ke3 {[%clk 0:00:03]}  Rd1 {[%clk 0:00:11]} 47. Rxb5+ {[%clk 0:00:03]}  Kf6 {[%clk 0:00:10]} 48. Nxh5+ {[%clk 0:00:03]}  Ke6 {[%clk 0:00:09]} 49. Nf4+ {[%clk 0:00:03]}  Kf7 {[%clk 0:00:09]} 50. Ke4 {[%clk 0:00:03]}  Rg1 {[%clk 0:00:09]} 51. Kf5 {[%clk 0:00:03]}  Rxg3 {[%clk 0:00:09]} 52. Rb7+ {[%clk 0:00:04]}  Kg8 {[%clk 0:00:08]} 53. Kg6 {[%clk 0:00:03]}  Kf8 {[%clk 0:00:08]} 54. Nh5 {[%clk 0:00:04]}  Rf3 {[%clk 0:00:07]} 55. Nf6 {[%clk 0:00:04]}  g3 {[%clk 0:00:05]} 56. Rf7# {[%clk 0:00:04]} 1-0


[Site "https://www.chess.com"]

[Event "Titled Tuesday Blitz February 07 Late 2023"]
[White "Manu_ChessExcelsior"]
[Black "Goncalves, Davi Sulzbacher"]
[BlackFideId "2154510"]
[WhiteElo "1881"]
[BlackElo "2282"]
[Result "0-1"]
[Round "04"]
[TimeControl "180+2"]
[Date "2023.02.07"]
[WhiteClock "0:00:17"]
[BlackClock "0:00:20"]

1. e4 {[%clk 0:03:00]}  e5 {[%clk 0:03:00]} 2. Nf3 {[%clk 0:02:58]}  Nc6 {[%clk 0:03:00]} 3. Bc4 {[%clk 0:02:56]}  Nf6 {[%clk 0:02:59]} 4. Ng5 {[%clk 0:02:55]}  d5 {[%clk 0:02:59]} 5. exd5 {[%clk 0:02:55]}  b5 {[%clk 0:02:58]} 6. Bf1 {[%clk 0:02:53]}  Nd4 {[%clk 0:02:56]} 7. c3 {[%clk 0:02:53]}  Nxd5 {[%clk 0:02:50]} 8. cxd4 {[%clk 0:02:46]}  Qxg5 {[%clk 0:02:50]} 9. Bxb5+ {[%clk 0:02:46]}  Kd8 {[%clk 0:02:49]} 10. O-O {[%clk 0:02:46]}  Bb7 {[%clk 0:02:45]} 11. Qf3 {[%clk 0:02:33]}  Rb8 {[%clk 0:02:31]} 12. Qg3 {[%clk 0:02:09]}  Qxg3 {[%clk 0:02:24]} 13. fxg3 {[%clk 0:02:02]}  exd4 {[%clk 0:02:02]} 14. Rxf7 {[%clk 0:01:55]}  Nf6 {[%clk 0:02:02]} 15. Bc4 {[%clk 0:01:37]}  Be4 {[%clk 0:02:01]} 16. d3 {[%clk 0:01:18]}  Bg6 {[%clk 0:01:58]} 17. Bg5 {[%clk 0:01:12]}  Bxf7 {[%clk 0:01:55]} 18. Bxf7 {[%clk 0:01:11]}  Rxb2 {[%clk 0:01:51]} 19. Nd2 {[%clk 0:01:10]}  h6 {[%clk 0:01:35]} 20. Nc4 {[%clk 0:01:00]}  Re2 {[%clk 0:01:21]} 21. Kf1 {[%clk 0:00:44]}  Re7 {[%clk 0:01:19]} 22. Bxf6 {[%clk 0:00:30]}  gxf6 {[%clk 0:01:20]} 23. Bd5 {[%clk 0:00:25]}  h5 {[%clk 0:00:34]} 24. Rb1 {[%clk 0:00:25]}  Kd7 {[%clk 0:00:22]} 25. Bc6+ {[%clk 0:00:17]}  Kxc6 {[%clk 0:00:20]} 0-1


[Site "https://www.chess.com"]

[Event "Titled Tuesday Blitz February 07 Late 2023"]
[White "Suarez Uriel, Adrian"]
[Black "Alexikov, Alexander"]
[WhiteFideId "22230874"]
[BlackFideId "14103958"]
[WhiteElo "2356"]
[BlackElo "2209"]
[Result "0-1"]
[Round "04"]
[TimeControl "180+2"]
[Date "2023.02.07"]
[WhiteClock "0:01:51"]
[BlackClock "0:00:27"]

1. e4 {[%clk 0:02:40]}  c5 {[%clk 0:02:59]} 2. Nf3 {[%clk 0:02:39]}  d6 {[%clk 0:02:59]} 3. d4 {[%clk 0:02:39]}  cxd4 {[%clk 0:02:59]} 4. Nxd4 {[%clk 0:02:40]}  Nf6 {[%clk 0:02:58]} 5. Nc3 {[%clk 0:02:39]}  a6 {[%clk 0:02:59]} 6. h3 {[%clk 0:02:37]}  e6 {[%clk 0:02:57]} 7. g4 {[%clk 0:02:37]}  b5 {[%clk 0:02:56]} 8. Bg2 {[%clk 0:02:36]}  Bb7 {[%clk 0:02:56]} 9. g5 {[%clk 0:02:32]}  Nfd7 {[%clk 0:02:54]} 10. h4 {[%clk 0:02:32]}  Be7 {[%clk 0:02:48]} 11. a3 {[%clk 0:02:30]}  Qc7 {[%clk 0:02:36]} 12. h5 {[%clk 0:02:29]}  Ne5 {[%clk 0:02:07]} 13. f4 {[%clk 0:02:26]}  Nc4 {[%clk 0:02:05]} 14. g6 {[%clk 0:02:27]}  Bf6 {[%clk 0:01:47]} 15. gxf7+ {[%clk 0:02:26]}  Qxf7 {[%clk 0:01:44]} 16. b3 {[%clk 0:02:24]}  Nb6 {[%clk 0:01:41]} 17. Be3 {[%clk 0:02:24]}  N8d7 {[%clk 0:01:39]} 18. Qd2 {[%clk 0:02:23]}  O-O {[%clk 0:01:25]} 19. h6 {[%clk 0:02:19]}  g6 {[%clk 0:01:23]} 20. O-O-O {[%clk 0:02:18]}  Rac8 {[%clk 0:01:18]} 21. Bh3 {[%clk 0:02:18]}  Rfe8 {[%clk 0:01:16]} 22. f5 {[%clk 0:02:18]}  exf5 {[%clk 0:01:12]} 23. exf5 {[%clk 0:02:17]}  Bxh1 {[%clk 0:01:09]} 24. Rxh1 {[%clk 0:02:17]}  Rxc3 {[%clk 0:01:02]} 25. Qxc3 {[%clk 0:02:17]}  Nd5 {[%clk 0:01:01]} 26. fxg6 {[%clk 0:02:18]}  hxg6 {[%clk 0:01:00]} 27. Qc6 {[%clk 0:02:09]}  Ne5 {[%clk 0:00:37]} 28. h7+ {[%clk 0:02:07]}  Kh8 {[%clk 0:00:33]} 29. Be6 {[%clk 0:01:51]}  Qxe6 {[%clk 0:00:27]} 0-1


[Site "https://www.chess.com"]